fUST/lending_fUST_20240103
["ID","MTS","AMOUNT","RATE_DAILY","PERIOD"]
[310037383,1704295773277,-249.77796215,0.00028107,2]
[310037384,1704295773298,-4860.05304566,0.00028107,2]
[310037385,1704295773322,-155.16146255,0.00028107,2]
[310037386,1704295773347,-15986.03917924,0.00028107,2]
[310037387,1704295773369,-5076.05878035,0.00028107,2]
[310037388,1704295773390,-4703.58483279,0.00028107,2]
[310037389,1704295773411,-586.04748878,0.00028107,2]
[310037390,1704295773431,-810.03302941,0.00028107,2]
[310037391,1704295773451,-230.12748224,0.00028107,2]
[310037392,1704295773471,-210.77603263,0.00028107,2]
[310037393,1704295773492,-902.45856594,0.00028107,2]
[310037394,1704295773524,-688.76876528,0.00028107,2]
[310037395,1704295773553,-273.13997523,0.00028107,2]
[310037396,1704295773579,-2605.5691244,0.00028121,2]
[310037397,1704295773610,-155.33062832,0.00028132,2]
[310037398,1704295773643,-154.90705577,0.00028136,2]
[310037399,1704295773670,-432.31552047,0.00028136,2]
[310037400,1704295773696,-2383.07576563,0.00028136,2]
[310037401,1704295773722,-675.42451354,0.00028136,2]
[310037402,1704295773748,-154.81422293,0.00028136,2]
[310037403,1704295773775,-166.2793413,0.00028136,2]
[310037404,1704295773797,-399.43796876,0.00028136,2]
[310037405,1704295773825,-226.97049726,0.00028136,2]
[310037406,1704295773851,-512.38856366,0.00028144,2]
[310037407,1704295773877,-18945.55899172,0.00028149,2]
[310037408,1704295773904,-155.19599509,0.00028149,2]
[310037409,1704295773933,-168.63516773,0.00028405,2]
[310037410,1704295773961,-166.666666,0.0002842,2]
[310037411,1704295773984,-643.50821285,0.00028728,2]
[310037412,1704295774007,-168.63516773,0.00028763,2]
[310037413,1704295774034,-171.035741,0.00029022,2]
[310037414,1704295774062,-168.63516773,0.00029121,2]
[310037415,1704295774087,-166.666666,0.00029174,2]
[310037416,1704295774125,-1320.81396188,0.0002971,2]
[310037417,1704295774160,-1157.2209819,0.00029711,2]
[310037418,1704295774195,-166.666666,0.00029928,2]
[310037419,1704295774226,-281.91464801,0.0003,3]
[310037420,1704295774256,-7025.05114454,0.0003,4]
[310037421,1704295774285,-638.44894353,0.00030136,4]
[310037422,1704295774311,-816.5026168,0.00030137,2]
[310037423,1704295774338,-621.17541064,0.00030164,2]
[310037424,1704295774365,-158.01196814,0.00030375,2]
[310037425,1704295774392,-166.666666,0.00030682,2]
[310037426,1704295774417,-237.53967205,0.00030687,2]
[310037427,1704295774444,-200.0,0.00030914,15]
[310037428,1704295774470,-480.52605379,0.00031099,4]
[310037429,1704295774496,-4043.47511646,0.00031121,4]
[310037430,1704295774522,-154.89154809,0.00031122,4]
[310037431,1704295774668,-154.84515485,0.00031122,4]
[310037432,1704295774691,-246.57787243,0.00031122,4]
[310037433,1704295774712,-308.40003763,0.00031122,4]
[310037434,1704295774733,-544.08897137,0.00031122,4]
[310037435,1704295774752,-531.14374724,0.00031122,4]
[310037436,1704295774772,-1072.88153875,0.00031122,4]
[310037437,1704295774794,-295.06339553,0.00031122,4]
[310037438,1704295774815,-184.76548466,0.00031308,2]
[310037439,1704295774837,-166.666666,0.00031437,2]
[310037440,1704295774861,-620.05877053,0.00031673,2]
[310037441,1704295774883,-2631.63248071,0.00033,4]
[310037442,1704295774904,-620.00293853,0.00033256,2]
[310037443,1704295774926,-237.53967205,0.00033338,2]
[310037444,1704295774949,-1972.64,0.00033778,3]
[310037445,1704295774969,-54.64962772,0.00033788,2]
[310037446,1704295775487,-5000.0,0.00027816,2]
[310037447,1704295775661,-304.4373196,0.00027816,2]
[310037448,1704295775794,-2627.76830073,0.00027816,2]
[310037621,1704295842752,-154.76784823,0.00033776,5]
[310037623,1704295842761,-1643.86,0.00033777,3]
[310037625,1704295842770,-1369.89,0.00033777,3]
[310037627,1704295842779,-1141.57,0.00033777,3]
[310037629,1704295842788,-78208.01491016,0.00033787,4]
[310037632,1704295842797,-265.2486381,0.00033787,4]
[310037634,1704295842805,-6620.77149488,0.00033788,2]
[310037637,1704295842815,-322.66510448,0.00033788,3]
[310037640,1704295842824,-1000.0,0.00034,7]
[310037643,1704295842833,-280.0,0.00034006,15]
[310037646,1704295842842,-795.13992855,0.00034361,30]
[310037649,1704295842851,-326.061873,0.00034521,2]
[310037651,1704295842860,-806.662028,0.00034665,2]
[310037653,1704295842869,-2927.6637445,0.00034695,2]
[310037655,1704295842879,-431.356455,0.00034852,2]
[310037657,1704295842888,-431.356455,0.00034852,2]
[310037658,1704295842899,-431.356455,0.00034852,2]
[310037659,1704295842909,-431.356455,0.00034852,2]
[310037661,1704295842918,-431.356455,0.00034852,2]
[310037663,1704295842928,-265.70132317,0.000349,4]
[310037665,1704295842938,-4090.27140411,0.000349,4]
[310037667,1704295842947,-155.78943376,0.000349,4]
[310037669,1704295842957,-176.37293722,0.000349,4]
[310037671,1704295842966,-154.8830599,0.000349,2]
[310037673,1704295842975,-154.78330338,0.000349,14]
[310037675,1704295842984,-154.79876161,0.000349,4]
[310037676,1704295842993,-404.97657423,0.000349,4]
[310037678,1704295843002,-886.210094,0.000349,5]
[310037679,1704295843011,-157.45670722,0.000349,4]
[310037681,1704295843020,-2468.25812025,0.000349,4]
[310037682,1704295843029,-270.19737346,0.00035,2]
[310037684,1704295843038,-590.27084275,0.00035,2]
[310037686,1704295843047,-150.0,0.00035452,2]
[310037688,1704295843056,-232.886144,0.00035616,120]
[310037689,1704295843065,-326.061873,0.00035798,2]
[310037691,1704295843075,-237.53967205,0.00035989,2]
[310037693,1704295843084,-621.84507701,0.00036042,2]
[310037694,1704295843093,-394.96400341,0.00036634,4]
[310037695,1704295843102,-383.32525908,0.00036634,4]
[310037696,1704295843111,-2108.16474975,0.00036635,2]
[310037697,1704295843120,-326.061873,0.00037075,2]
[310037698,1704295843129,-391.0,0.00037406,15]
[310037699,1704295843139,-154.84515485,0.00037795,4]
[310037701,1704295843149,-1161.63590475,0.00037795,4]
[310037702,1704295843158,-2674.06388022,0.00037795,4]
[310037703,1704295843167,-1068.23,0.00037927,2]
[310037704,1704295843176,-28026.6129548,0.00037997,2]
[310037705,1704295843185,-2817.67172187,0.00037997,4]
[310037706,1704295843194,-650.26375749,0.00037997,3]
[310037707,1704295843203,-236.6445,0.00037998,4]
[310037708,1704295843212,-189.77321757,0.00037998,4]
[310037710,1704295843223,-13592.57647448,0.00037998,4]
[310037712,1704295843233,-1000.0,0.00037999,14]
[310037714,1704295843242,-1000.0,0.00037999,14]
[310037715,1704295843256,-616.50100192,0.00037999,14]
[310037716,1704295843265,-18085.76487944,0.00038181,4]
[310037717,1704295843275,-595.94126724,0.00038351,2]
[310037718,1704295843284,-326.061873,0.00038352,2]
[310037719,1704295843295,-500.0,0.00038356,2]
[310037720,1704295843305,-155.05907829,0.00038374,4]
[310037721,1704295843314,-274.99427682,0.00038565,4]
[310037722,1704295843325,-226.860578,0.00038565,4]
[310037723,1704295843334,-326.09564033,0.00038565,4]
[310037724,1704295843344,-201.12975004,0.00038565,4]
[310037725,1704295843354,-194.71254098,0.00038565,4]
[310037726,1704295843366,-155.4858064,0.00038565,4]
[310037727,1704295843377,-243.14142942,0.00038565,4]
[310037728,1704295843387,-4255.07266841,0.00038565,2]
[310037729,1704295843397,-154.84515485,0.00038565,2]
[310037730,1704295843407,-3222.36129057,0.00038566,4]
[310037731,1704295843416,-191.32,0.00038566,2]
[310037732,1704295843427,-191.32,0.00038566,2]
[310037733,1704295843436,-191.32,0.00038566,2]
[310037734,1704295843446,-191.32,0.00038566,2]
[310037735,1704295843456,-349.27054601,0.00038567,120]
[310037736,1704295843465,-201.93566277,0.00038567,4]
[310037737,1704295843475,-154.84514248,0.00038567,6]
[310037738,1704295843484,-190.83963884,0.00038567,20]
[310037739,1704295843494,-7185.25508081,0.00038567,4]
[310037740,1704295843503,-524.84202363,0.00038567,4]
[310037741,1704295843513,-155.11189304,0.00038567,4]
[310037742,1704295843522,-1747.1291554,0.00038567,4]
[310037743,1704295843532,-683.3636573,0.00038567,4]
[310037744,1704295843541,-155.29052109,0.00038567,4]
[310037745,1704295843551,-196.29354506,0.00038567,4]
[310037746,1704295843560,-155.18941918,0.00038567,4]
[310037747,1704295843620,-200.0,0.00038567,4]
[310037748,1704295843636,-155.30230041,0.00038567,4]
[310037749,1704295843647,-434.2870284,0.00038567,4]
[310037750,1704295843657,-155.4642419,0.00038567,4]
[310037751,1704295843667,-155.97215406,0.00038567,4]
[310037752,1704295843676,-171.56685983,0.00038567,4]
[310037753,1704295843685,-160.57105795,0.00038567,4]
[310037754,1704295843695,-160.42894115,0.00038567,4]
[310037755,1704295843704,-155.18076942,0.00038567,4]
[310037756,1704295843713,-155.23899653,0.00038567,4]
[310037757,1704295843722,-13665.60746403,0.00038567,4]
[310037758,1704295843732,-155.16837526,0.00038567,4]
[310037759,1704295843741,-301.14245038,0.00038567,4]
[310037760,1704295843750,-155.26733816,0.00038567,4]
[310037761,1704295843759,-155.24518199,0.00038567,4]
[310037762,1704295843768,-677.30961529,0.00038567,4]
[310037763,1704295843778,-566.8444163,0.00038567,4]
[310037764,1704295843788,-155.5073615,0.00038567,4]
[310037765,1704295843797,-241.93391047,0.00038567,4]
[310037766,1704295843807,-271.21124902,0.00038567,4]
[310037767,1704295843816,-2530.91544458,0.00038567,4]
[310037768,1704295843825,-441.10944389,0.00038567,4]
[310037769,1704295843835,-785.59643766,0.00038567,4]
[310037770,1704295843844,-615.1293352,0.00038567,4]
[310037771,1704295843853,-243.09147667,0.00038567,4]
[310037772,1704295843862,-353.7974936,0.00038567,4]
[310037773,1704295843871,-288.45994333,0.00038567,4]
[310037774,1704295843881,-4863.84931342,0.00038567,4]
[310037775,1704295843891,-526.27874957,0.00038567,4]
[310037776,1704295843901,-2224.16559917,0.00038567,4]
[310037777,1704295843910,-568.77949818,0.00038567,4]
[310037778,1704295844217,-2208.05351062,0.0003434,2]
[310037779,1704295844229,-17810.78999998,0.0003434,2]
[310037780,1704295844240,-4881.1564894,0.0003434,2]
[310037781,1704295844250,-284.74082257,0.00038567,4]
[310037782,1704295844259,-6451.41517721,0.00038567,4]
[310037783,1704295844268,-155.87248522,0.00038567,4]
[310037784,1704295844277,-360.96279785,0.00038567,4]
[310037785,1704295844287,-385.05460161,0.00038567,4]
[310037786,1704295844296,-156.66264027,0.00038567,4]
[310037787,1704295844305,-734.66321767,0.00038567,4]
[310037788,1704295844315,-16507.45345076,0.00038567,4]
[310037789,1704295844324,-630.04637123,0.00038567,2]
[310037790,1704295844333,-323.10508486,0.00038567,4]
[310037791,1704295844342,-1412.38155704,0.00038567,7]
[310037792,1704295844352,-154.78330338,0.00038567,4]
[310037793,1704295844361,-5081.66146659,0.00038567,4]
[310037794,1704295844370,-2298.26857568,0.00038567,4]
[310037795,1704295844380,-2777.46895919,0.00038567,4]
[310037796,1704295844389,-346.39308362,0.00038567,4]
[310037797,1704295844401,-305.30406641,0.00038567,4]
[310037798,1704295844411,-6820.04058781,0.00038567,4]
[310037799,1704295844420,-341.71354205,0.00038567,4]
[310037800,1704295844429,-7025.05114454,0.00038567,4]
[310037801,1704295844439,-1606.23360316,0.00038567,4]
[310037802,1704295844448,-241.09764689,0.00038567,4]
[310037803,1704295844457,-2367.79553202,0.00038567,4]
[310037804,1704295844467,-1571.41439607,0.00038567,4]
[310037805,1704295844477,-276.48067966,0.00038567,4]
[310037806,1704295844486,-10418.56312094,0.00038567,2]
[310037807,1704295844495,-585.13193792,0.00038567,4]
[310037808,1704295844505,-15857.09796238,0.00038567,4]
[310037809,1704295844515,-496.08107459,0.00038567,4]
[310037810,1704295844576,-500.0,0.00038568,2]
[310037811,1704295844586,-433.49784328,0.00038568,2]
[310037812,1704295844595,-500.0,0.00038568,2]
[310037813,1704295844604,-296.9673178,0.00038568,2]
[310037814,1704295844613,-3585.89591333,0.00038568,14]
[310037815,1704295844622,-331.06635345,0.00038568,4]
[310037816,1704295844632,-259.57900916,0.00038568,3]
[310037817,1704295844641,-276000.0,0.00038569,2]
[310037818,1704295844653,-500.0,0.00038639,4]
[310037819,1704295844662,-280.44757216,0.00038639,4]
[310037820,1704295844671,-506.06748094,0.00038639,4]
[310037821,1704295844680,-482.8709357,0.00038639,4]
[310037822,1704295844689,-500.0,0.00038639,4]
[310037823,1704295844700,-210.02039284,0.00038639,4]
[310037824,1704295844709,-500.0,0.00038639,7]
[310037825,1704295844718,-472.72548835,0.00038639,7]
[310037826,1704295844729,-237.53967205,0.0003864,2]
[310037827,1704295844738,-200.0,0.0003874,2]
[310037828,1704295844747,-10536.01914553,0.00038879,2]
[310037829,1704295844757,-3325.0,0.00039084,2]
[310037830,1704295844766,-175.0,0.00039084,2]
[310037831,1704295844775,-539.56883172,0.00039094,2]
[310037832,1704295844785,-8469.54760269,0.00039094,2]
[310037833,1704295844794,-2082.4912537,0.00039094,2]
[310037834,1704295844804,-624.74737611,0.00039094,2]
[310037835,1704295844813,-150.0,0.000396,60]
[310037836,1704295844823,-150.0,0.0003961,60]
[310037837,1704295844833,-150.0,0.0003962,60]
[310037838,1704295844843,-326.061873,0.0003963,2]
[310037839,1704295844852,-4022.15701146,0.00039795,2]
[310037840,1704295844862,-309.6903097,0.00039795,2]
[310037841,1704295844871,-1171.19863995,0.00039795,4]
[310037842,1704295844881,-152.15,0.0003997,7]
[310037843,1704295844890,-150.0,0.0003998,7]
[310037844,1704295844899,-150.0,0.0003999,7]
[310037845,1704295844909,-4031.97114424,0.0003999,4]
[310037846,1704295844918,-194.32962477,0.0004,4]
[310037847,1704295844928,-1278.30335464,0.0004,4]
[310037848,1704295844937,-1224.58434987,0.0004,14]
[310037849,1704295844947,-2534.985262,0.00040665,2]
[310037850,1704295844956,-4584.71682643,0.00041,20]
[310037851,1704295844965,-200.0,0.00041147,30]
[310037852,1704295844975,-348.0,0.00041147,30]
[310037853,1704295844984,-150.77383924,0.000412,2]
[310037854,1704295844993,-777.0,0.000415,4]
[310037855,1704295845003,-232.886144,0.00041553,120]
[310037856,1704295845013,-301.54767848,0.00041893,4]
[310037857,1704295845023,-2317.7109856,0.000419,2]
[310037858,1704295845033,-250.0,0.00042192,4]
[310037859,1704295845043,-6091.39385353,0.00042327,4]
[310037860,1704295845056,-3283.8354476,0.00042327,4]
[310037861,1704295845066,-416.1476151,0.00042328,2]
[310037862,1704295845075,-1000.0,0.00042329,14]
[310037863,1704295845085,-1999.0010419,0.00042546,120]
[310037864,1704295845095,-603.09535696,0.00042597,7]
[310037865,1704295845105,-4000.0,0.00043,4]
[310037866,1704295845114,-4808.08580524,0.00043,7]
[310037867,1704295845124,-1500.0,0.00043,3]
[310037868,1704295845133,-166.0,0.00043,90]
[310037869,1704295845142,-166.0,0.00043014,90]
[310037870,1704295845154,-2509.89847264,0.00043111,30]
[310037871,1704295845163,-153.0,0.00043507,2]
[310037872,1704295845173,-153.0,0.00043507,2]
[310037873,1704295845182,-153.0,0.00043507,2]
[310037874,1704295845192,-153.0,0.00043507,2]
[310037875,1704295845201,-1206.19071393,0.00043675,30]
[310037876,1704295845211,-150.0,0.000438,7]
[310037877,1704295845219,-550.0,0.00043835,7]
[310037878,1704295845229,-250.0,0.00043835,10]
[310037879,1704295845238,-275.36172513,0.00044,4]
[310037880,1704295845252,-24773.22016502,0.00044,120]
[310037881,1704295845261,-3000.0,0.00044,120]
[310037882,1704295845271,-1500.0,0.00044,3]
[310037883,1704295845281,-1000.0,0.00044007,15]
[310037884,1704295845290,-1000.0,0.00044007,15]
[310037885,1704295845299,-550.0,0.00044109,7]
[310037886,1704295845308,-550.0,0.00044383,7]
[310037887,1704295845318,-7219.96520272,0.000448,12]
[310037888,1704295845328,-166.0,0.00044877,90]
[310037889,1704295845338,-7215.82199052,0.000449,120]
[310037890,1704295845348,-313.12184238,0.00044996,4]
[310037891,1704295845357,-262.84829523,0.00044996,4]
[310037892,1704295845366,-276.30521429,0.00044996,4]
[310037893,1704295845376,-236.52214315,0.00044996,4]
[310037894,1704295845385,-381.44601732,0.00044998,4]
[310037895,1704295845395,-4984.72311247,0.00044998,30]
[310037896,1704295845452,-204.95874377,0.00044998,4]
[310037897,1704295845462,-165.7367711,0.00044998,10]
[310037898,1704295845472,-399.15407367,0.00044998,4]
[310037899,1704295845482,-311.54226411,0.00044998,4]
[310037900,1704295845491,-29945.69705227,0.00044999,30]
[310037901,1704295845501,-191.32,0.00044999,7]
[310037902,1704295845511,-191.32,0.00044999,7]
[310037903,1704295845521,-191.32,0.00044999,7]
[310037904,1704295845531,-191.32,0.00044999,7]
[310037905,1704295845540,-191.32,0.00044999,7]
[310037906,1704295845551,-303.64048856,0.00044999,7]
[310037907,1704295845561,-500.0,0.00044999,7]
[310037908,1704295845570,-146977.49433965,0.00045,120]
[310037948,1704295846181,-1380.83836463,0.00045,120]
[310037957,1704295846342,-81980.77165044,0.00045,120]
[310037958,1704295846351,-391.33326299,0.00045,10]
[310037959,1704295846360,-2916.03,0.00045,2]
[310037960,1704295846370,-199406.09790533,0.00045,7]
[310037961,1704295846381,-39989.47595354,0.00045,7]
[310037962,1704295846394,-682.93551798,0.00045,7]
[310037963,1704295846407,-419.90951034,0.00045,7]
[310037964,1704295846822,-4202.226674,0.00045,7]
[310037965,1704295846850,-42414.72574568,0.00045,7]
[310037966,1704295846868,-2254.64370593,0.00045,7]
[310037967,1704295846892,-15566.6028489,0.00045,7]
[310037968,1704295846915,-959.58023388,0.00045,7]
[310037969,1704295846937,-2519.94933662,0.00045,7]
[310037970,1704295846960,-1046.92951441,0.00045,7]
[310037971,1704295846972,-18.10391985,0.00045,30]
[310037972,1704295846992,-808.8343163,0.00045,30]
[310037973,1704295847184,-673.06176385,0.00045,30]
[310037974,1704295847194,-2156.56,0.00045,2]
[310037975,1704295847204,-1500.0,0.00045,3]
[310037976,1704295847213,-2178.86090068,0.00045,15]
[310037977,1704295847223,-153.0,0.00045014,2]
[310037978,1704295847233,-153.0,0.00045014,2]
[310037979,1704295847242,-153.0,0.00045014,2]
[310037980,1704295847257,-153.0,0.00045014,2]
[310037981,1704295847267,-153.0,0.00045014,2]
[310037982,1704295847276,-57.86773738,0.00045014,2]
[310037983,1704295847287,-248.13226262,0.00045014,2]
[310037984,1704295847299,-1029.52745226,0.00045072,2]
[310037985,1704295847308,-365.44441516,0.00045178,7]
[310037986,1704295847819,-266.21,0.00033777,3]
[310037987,1704295847829,-154.75239617,0.00034708,4]
[310037988,1704295847839,-1134.55558484,0.00045178,7]
[310037989,1704295847848,-500.0,0.00045205,27]
[310037990,1704295847857,-200.0,0.00045262,30]
[310037991,1704295847867,-200.0,0.00045262,30]
[310037992,1704295847878,-368.0,0.00045262,30]
[310037993,1704295847887,-500.0,0.00045479,27]
[310037994,1704295847896,-4216.1,0.00045653,5]
[310037995,1704295847908,-161.96718927,0.00045701,10]
[310037996,1704295847917,-155.09000305,0.00045749,4]
[310037997,1704295847926,-44.29765653,0.00045749,4]
[310037998,1704295847941,-220.81098826,0.00045749,4]
[310037999,1704295847950,-2823.00744961,0.00045749,2]
[310038000,1704295847959,-234.0547659,0.00045749,4]
[310038001,1704295847969,-155.6655669,0.00045749,4]
[310038002,1704295847978,-157.65902657,0.00045749,4]
[310038003,1704295847987,-155.30153862,0.0004575,4]
[310038004,1704295847997,-2027.03693589,0.0004575,4]
[310038005,1704295848006,-296.79009175,0.0004575,4]
[310038006,1704295848015,-245.49702411,0.0004575,4]
[310038007,1704295848024,-154.82968734,0.0004575,7]
[310038008,1704295848033,-7713.61089134,0.0004575,2]
[310038009,1704295848043,-2728.5110886,0.00045751,4]
[310038010,1704295848052,-283.30555506,0.00045751,4]
[310038011,1704295848062,-155.15923161,0.00045751,4]
[310038012,1704295848071,-272.24780483,0.00045751,4]
[310038013,1704295848081,-309.52047896,0.00045752,4]
[310038014,1704295848091,-2344.66991584,0.00045752,4]
[310038015,1704295848101,-305.400635,0.00045753,5]
[310038016,1704295848111,-151.0,0.00045753,2]
[310038017,1704295848121,-151.0,0.00045753,2]
[310038018,1704295848131,-151.0,0.00045753,2]
[310038019,1704295848140,-151.0,0.00045753,2]
[310038020,1704295848152,-289.0,0.00045753,2]
[310038021,1704295848161,-662.411675,0.00045753,7]
[310038022,1704295848171,-662.411675,0.00045753,7]
[310038023,1704295848180,-662.411675,0.00045753,7]
[310038024,1704295848189,-662.411675,0.00045753,7]
[310038025,1704295848198,-662.411675,0.00045753,7]
[310038026,1704295848208,-662.411675,0.00045753,7]
[310038027,1704295848218,-662.411675,0.00045753,7]
[310038028,1704295848228,-662.411675,0.00045753,7]
[310038029,1704295848238,-662.411675,0.00045753,7]
[310038030,1704295848248,-662.411675,0.00045753,7]
[310038031,1704295848258,-218.083493,0.00045753,7]
[310038032,1704295848268,-151.0,0.00045753,3]
[310038033,1704295848278,-151.0,0.00045753,3]
[310038034,1704295848288,-151.0,0.00045753,3]
[310038035,1704295848297,-151.0,0.00045753,3]
[310038036,1704295848307,-227.0,0.00045753,3]
[310038037,1704295848318,-672.663464,0.00045753,7]
[310038038,1704295848328,-672.663464,0.00045753,7]
[310038039,1704295848339,-672.663464,0.00045753,7]
[310038040,1704295848348,-672.663464,0.00045753,7]
[310038041,1704295848358,-672.663464,0.00045753,7]
[310038042,1704295848368,-672.663464,0.00045753,7]
[310038043,1704295848377,-174.9137953,0.00045753,14]
[310038044,1704295848387,-569.76920504,0.00045753,21]
[310038045,1704295848397,-500.0,0.00045753,21]
[310038046,1704295848408,-500.0,0.00045753,21]
[310038047,1704295848417,-500.0,0.00045753,21]
[310038048,1704295848426,-500.0,0.00045753,21]
[310038049,1704295848435,-500.0,0.00045753,21]
[310038050,1704295848444,-500.0,0.00045753,21]
[310038051,1704295848454,-500.0,0.00045753,21]
[310038052,1704295848464,-500.0,0.00045753,21]
[310038053,1704295848473,-474.04402461,0.00045753,21]
[310038054,1704295848483,-500.0,0.00045753,21]
[310038055,1704295848492,-246.26716176,0.00045753,21]
[310038056,1704295848502,-500.0,0.00045753,21]
[310038057,1704295848511,-500.0,0.00045753,21]
[310038058,1704295848521,-500.0,0.00045753,21]
[310038059,1704295848530,-500.0,0.00045753,21]
[310038060,1704295848540,-567.9188317,0.00045753,21]
[310038061,1704295848550,-500.0,0.00045753,21]
[310038062,1704295848559,-500.0,0.00045753,21]
[310038063,1704295848568,-500.0,0.00045753,21]
[310038064,1704295848578,-227.23649424,0.00045753,21]
[310038065,1704295848587,-500.0,0.00045753,21]
[310038066,1704295848597,-503.58227815,0.00045753,21]
[310038067,1704295848606,-547.65325719,0.00045753,21]
[310038068,1704295848615,-500.0,0.00045753,21]
[310038069,1704295848625,-500.0,0.00045753,21]
[310038070,1704295848634,-500.0,0.00045753,21]
[310038071,1704295848643,-500.0,0.00045753,21]
[310038072,1704295848654,-500.0,0.00045753,21]
[310038073,1704295848664,-500.0,0.00045753,21]
[310038074,1704295848674,-500.0,0.00045753,21]
[310038075,1704295848683,-210.62544808,0.00045753,21]
[310038076,1704295848693,-500.58436591,0.00045753,21]
[310038077,1704295848703,-150.0,0.00045753,2]
[310038078,1704295848712,-150.0,0.00045753,2]
[310038079,1704295848721,-150.0,0.00045753,2]
[310038080,1704295848731,-150.0,0.00045753,2]
[310038081,1704295848741,-251.36341069,0.00045753,2]
[310038082,1704295848751,-500.0,0.00045753,21]
[310038083,1704295848761,-500.0,0.00045753,21]
[310038084,1704295848770,-503.8377231,0.00045753,21]
[310038085,1704295848780,-500.0,0.00045753,21]
[310038086,1704295848791,-500.0,0.00045753,21]
[310038087,1704295848801,-515.75688866,0.00045753,21]
[310038088,1704295848810,-500.0,0.00045753,21]
[310038089,1704295848820,-513.13677447,0.00045753,21]
[310038090,1704295848829,-500.0,0.00045753,21]
[310038091,1704295848838,-500.0,0.00045753,21]
[310038092,1704295848848,-173.59897458,0.00045753,21]
[310038093,1704295848858,-500.0,0.00045753,21]
[310038094,1704295848867,-485.98425227,0.00045753,21]
[310038095,1704295848877,-512.17831879,0.00045753,21]
[310038096,1704295848886,-500.0,0.00045753,7]
[310038097,1704295848896,-500.0,0.00045753,21]
[310038098,1704295848906,-634.59528076,0.00045753,21]
[310038099,1704295848916,-500.0,0.00045753,21]
[310038100,1704295848925,-490.78788435,0.00045753,21]
[310038101,1704295848936,-217.90109404,0.00045753,21]
[310038102,1704295848945,-500.0,0.00045753,21]
[310038103,1704295848955,-591.86,0.00045753,21]
[310038104,1704295848964,-500.0,0.00045753,21]
[310038105,1704295848974,-591.86,0.00045753,21]
[310038106,1704295848983,-500.0,0.00045753,21]
[310038107,1704295848993,-500.0,0.00045753,21]
[310038108,1704295849003,-591.86,0.00045753,21]
[310038109,1704295849012,-500.0,0.00045753,21]
[310038110,1704295849021,-500.0,0.00045753,21]
[310038111,1704295849031,-500.0,0.00045753,21]
[310038112,1704295849040,-523.92089372,0.00045753,21]
[310038113,1704295849049,-500.0,0.00045753,21]
[310038114,1704295849058,-591.86,0.00045753,21]
[310038115,1704295849068,-500.0,0.00045753,21]
[310038116,1704295849077,-500.0,0.00045753,21]
[310038117,1704295849086,-330.33574537,0.00045753,21]
[310038121,1704296077894,464.41430275,0.0002711,2]
[310038122,1704296077922,724.96385982,0.0002711,2]
[310038123,1704296077949,429.5530944,0.0002711,2]
[310038124,1704296077977,759.71281646,0.0002711,2]
[310038125,1704296078006,349.11913242,0.0002711,2]
[310038126,1704296078029,16601.37248825,0.0002711,2]
[310038133,1704296711185,1187.05946596,0.0002711,2]
[310038134,1704296847097,-166.666666,0.00031374,2]
[310038135,1704296853085,-166.666666,0.00032229,2]
[310038136,1704296853106,-309.19239456,0.00032912,4]
[310038137,1704296853126,-166.2793413,0.00032913,2]
[310038138,1704296853147,-1227.50653823,0.00032914,4]
[310038139,1704296853167,-951.01232432,0.00032914,4]
[310038140,1704296951075,-496.08107459,0.00032908,4]
[310038141,1704296951096,-156.69710926,0.00032909,4]
[310038142,1704296951118,-154.73694719,0.0003291,5]
[310038143,1704296951138,-6820.04058781,0.0003291,4]
[310038144,1704296951157,-5246.86679064,0.0003291,4]
[310038145,1704296951177,-8868.98698529,0.00032911,4]
[310038146,1704296951197,-707.26713919,0.00032916,4]
[310038147,1704296962141,-6317.78400535,0.00032916,4]
[310038148,1704296962163,-24900.0,0.00032917,2]
[310038149,1704296962200,-200.0,0.0003292,2]
[310038150,1704296962222,-166.666666,0.00033085,2]